Cogmind - Beta 13 @@@ ROGUE MODE // 2024.03.25 @ 18:15:54 Player: GR4C3 Result: Destroyed by G-47 Trooper with Particle Gun Performance ------------- Evolutions (2) 1000 Regions Visited (3) 600 Robots Destroyed (49) 245 Value Destroyed (1250) 1250 Prototype IDs (3) 60 Alien Tech Used (0) 0 Bonus (0) 0 TOTAL SCORE: 3155 Bonus ------- None Cogmind --------- Core Integrity 0/550 Matter 183/300 Energy 100/100 System Corruption 3% Temperature Cool (9) Movement Flying (280) Ox3 Location -8/Materials Parts ------- > --- POWER (2) -------- (None) > --- PROPULSION (4) --- Flight Unit > --- UTILITY (3) ------ Medium Storage Unit Machine Analyzer > --- WEAPON (2) ------- Heavy Mace > --- INVENTORY (10) --- Cryofiber Web Signal Interpreter Core Analyzer EM Pulse Gun Improved EM Pulse Cannon Blade Saw Peak State ------------ > --- POWER ------------ Heavy Ion Engine > --- PROPULSION ------- Flight Unit Flight Unit Flight Unit Flight Unit > --- UTILITY ---------- Medium Storage Unit Machine Analyzer Improved Sensor Array > --- WEAPON ----------- Improved EM Pulse Cannon Assault Cannon > --- INVENTORY -------- Cryofiber Web Heat Sink Signal Interpreter Core Analyzer EM Pulse Gun Advanced Beam Cannon Heavy Particle Cannon Heavy Mace Blade Saw [Rating: 23] Favorites ----------- Power Light Ion Engine Engine Light Ion Engine Propulsion Aluminum Leg Leg Aluminum Leg Hover Unit Aerolev Unit Flight Unit Flight Unit Utility Large Matter Pod Device Improved Sensor Array Storage Large Matter Pod Processor Machine Analyzer Weapon Assault Rifle Energy Gun Spread Laser Energy Cannon Advanced Beam Cannon Ballistic Gun Assault Rifle Ballistic Cannon Assault Cannon Launcher Grenade Launcher Impact Weapon Heavy Mace Build | -11 -10 -9 -8 ------- Run | Yrd Mat Mat Mat Slots Evolved 4 | . . 2 2 Power 1 | . . . 1 Propulsion 2 | . . 2 . Utility 1 | . . . 1 Weapon . | . . . . Parts Attached 55 | 6 10 10 29 Power 6 | 1 . 2 3 Engine 6 | 1 . 2 3 Core . | . . . . Reactor . | . . . . Propulsion 11 | 2 2 2 5 Treads . | . . . . Leg 6 | 2 2 2 . Wheel . | . . . . Hover 1 | . . . 1 Flight 4 | . . . 4 Utility 16 | 1 4 3 8 Device 4 | . . . 4 Storage 11 | 1 4 3 3 Processor 1 | . . . 1 Hackware . | . . . . Protection . | . . . . Artifact . | . . . . Weapon 22 | 2 4 3 13 Energy Gun 7 | . 2 3 2 Energy Cannon 7 | . . . 7 Ballistic Gun 4 | 2 1 . 1 Ballistic Cannon 2 | . . . 2 Launcher 1 | . 1 . . Special Weapon . | . . . . Impact Weapon 1 | . . . 1 Slashing Weapon . | . . . . Piercing Weapon . | . . . . Special Melee Weapon . | . . . . Unidentified Prototypes 3 | . . . 3 Parts Lost 22 | . 1 1 20 Power 4 | . . . 4 Propulsion 7 | . . 1 6 Utility 3 | . . . 3 Weapon 8 | . 1 . 7 Highest Loss Streak 9 | . 1 1 9 To Critical Strikes . | . . . . Average Slot Usage (%) 84 | . 90 90 76 Engine 13 | . 14 11 14 Leg 24 | . 28 35 16 Flight 1 | . . . 3 Device 4 | . . . 9 Storage 19 | . 23 22 15 Energy Gun 8 | . 2 11 10 Ballistic Gun 8 | . 16 11 2 Launcher 1 | . 4 . . Naked Turns . | . . . . Heaviest Build 39 | 12 19 35 39 Greatest Support 43 | 20 20 43 33 Greatest Overweight (x) 11 | 1 . 1 11 Average Overweight (x) . | . . . 1 Largest Inventory Capacity 15 | 8 15 15 15 Average Capacity 11 | 5 8 12 12 Most Carried 13 | 5 8 11 13 Average Carried 8 | 3 4 8 10 Final Capacity 15 | 8 10 15 10 Final Carried 10 | 2 7 10 6 Class Distribution -------------------- 58% | Mutant 41% | Scavenger-Mutant Dominant Class ---------------- Mutant | -10/Materials Scavenger-Mutant | -9/Materials Scavenger-Mutant | -8/Materials Resources | -11 -10 -9 -8 ----------- Run | Yrd Mat Mat Mat Matter Collected 1325 | 189 220 443 473 Remotely . | . . . . Salvage Created 1509 | . 314 310 885 Parts 82 | . 24 24 34 Haulers Intercepted . | . . . . Recyclers Shooed 3 | . 1 . 2 Parts Field Recycled . | . . . . Retrieved Matter . | . . . . Parts Self-Destructed . | . . . . Prevented . | . . . . Kills | -11 -10 -9 -8 ------- Run | Yrd Mat Mat Mat Combat Hostiles Destroyed 37 | . 11 6 20 Melee 1 | . . . 1 Guns 22 | . 5 6 11 Cannons 7 | . . . 7 AOE 6 | . 6 . . Classes Destroyed 7 | . 5 1 1 Worker 2 | . . . 2 Builder 1 | . 1 . . Recycler 4 | . 1 1 2 Watcher 5 | . 2 2 1 Swarmer 15 | . 6 3 6 Grunt 16 | . 5 . 11 Sentry 6 | . . 3 3 Best Kill Streak 9 | . 6 4 9 Combat Bots Only 7 | . 5 3 7 Max Kills in Single Turn 3 | . 3 1 1 Gunslinging . | . . . . Exploded 3 | . 3 . . Melee 1 | . . . 1 Uniques/NPCs Destroyed . | . . . . Combat | -11 -10 -9 -8 -------- Run | Yrd Mat Mat Mat Hostile Shots Fired 301 | . 55 33 213 Missed 69 | . 17 10 42 Damage Taken 2828 | . 366 266 2196 Core 662 | . 64 41 557 Absorbed by Shields . | . . . . Regen/Repaired (Parts) 46 | . 46 . . Core Remaining (%) 87 | 100 74 89 . Volleys Fired 156 | . 37 29 90 Largest 2 | . 2 2 2 Hottest 143 | . 60 70 143 Shots Fired 253 | . 54 55 144 Gun 182 | . 44 55 83 Cannon 61 | . . . 61 Launcher 10 | . 10 . . Special . | . . . . Kinetic 121 | . 37 29 55 Thermal 95 | . 7 26 62 Explosive 10 | . 10 . . Electromagnetic 27 | . . . 27 Robot Hit Streak 7 | . 7 7 7 Robot Miss Streak 8 | . 3 6 8 Penetration Max . | . . . . Secondary Targets 2 | . . 1 1 Max Gunslinging Chain 1 | . . 1 1 Shots Hit Robots 156 | . 28 30 98 Core Hits 128 | . 23 15 90 Critical Kills 1 | . . . 1 Critical Parts Destroyed 1 | . . 1 . Critical Strikes 4 | . . 2 2 Burn 1 | . . 1 . Meltdown 1 | . . . 1 Destroy 1 | . . 1 . Blast 1 | . . . 1 Melee Attacks 2 | . . . 2 Impact 2 | . . . 2 Slashing . | . . . . Piercing . | . . . . Sneak Attacks . | . . . . Combat Hostiles . | . . . . Follow-up Attacks . | . . . . Damage Inflicted 3189 | . 796 437 1956 Guns 1584 | . 336 415 833 Cannons 1012 | . . . 1012 Explosions 485 | . 460 . 25 Melee 86 | . . . 86 Ramming 22 | . . 22 . Kinetic 1154 | . 314 204 636 Thermal 1060 | . 22 211 827 Explosive 460 | . 460 . . Electromagnetic 407 | . . . 407 Impact 86 | . . . 86 Slashing . | . . . . Piercing . | . . . . Highest Corruption 3 | . . . 3 Average Corruption 3 | . . . 3 Corruption Purged . | . . . . Corruption Blocked . | . . . . Effects 6 | . . . 6 Message Errors 1 | . . . 1 Matter Fused 2 | . . . 2 Parts Rejected 1 | . . . 1 Parts Fused 1 | . . . 1 Data Loss (minor) 1 | . . . 1 Overload Shots . | . . . . Overflow Damage 8 | . . . 8 Projectiles 8 | . . . 8 Explosions . | . . . . Melee . | . . . . Knockbacks 9 | . . . 9 Impact 1 | . . . 1 Kinetic 7 | . . . 7 Secondary 1 | . . . 1 Self-Inflicted Damage 11 | . 11 . . Shots 1 | . 1 . . Rammed . | . . . . Targets Rammed 2 | . . 2 . Kicked 2 | . . 2 . Crushed . | . . . . Highest Temperature 581 | . 30 27 581 Average Temperature 118 | . 18 7 146 Received Heat Transfer 1062 | . 81 45 936 Effects 12 | . . . 12 Shutdowns 2 | . . . 2 Energy Bleed 2 | . . . 2 Interference 2 | . . . 2 Matter Decay 2 | . . . 2 Damage (major) 3 | . . . 3 Damage (core) 1 | . . . 1 Siege Activations . | . . . . Robots Corrupted . | . . . . Combat Hostiles . | . . . . Parts Fried 1 | . . . 1 Impact Corruptions 1 | . . 1 . Robots Melted 1 | . . . 1 Combat Hostiles 1 | . . . 1 Parts Melted 4 | . . 2 2 Heat Transferred 1922 | . 50 667 1205 Parts Sabotaged . | . . . . Parts Stolen . | . . . . Parts Stripped . | . . . . Power Chain Reactions 1 | . . . 1 Alert | -11 -10 -9 -8 ------- Run | Yrd Mat Mat Mat Peak Influence 365 | . 305 365 291 Initial 69 | . . 61 69 Average 148 | . 130 184 147 Maximum Alert Level 1 | . 1 1 1 Low Security (%) 74 | 100 80 73 70 Level 1 25 | . 19 26 29 Level 2 . | . . . . Level 3 . | . . . . Level 4 . | . . . . Level 5 . | . . . . High Security . | . . . . Max Security . | . . . . Squads Dispatched 5 | . 1 . 4 Investigation 2 | . . . 2 Extermination . | . . . . Reinforcement 3 | . 1 . 2 Assault . | . . . . Garrison . | . . . . Intercept . | . . . . Searches Triggered . | . . . . Construction Impeded 1 | . . . 1 Haulers Reinforced . | . . . . Active Scanning Responses . | . . . . Cargo Convoy Interrupts . | . . . . Stealth | -11 -10 -9 -8 --------- Run | Yrd Mat Mat Mat Distress Signals 5 | . 1 1 3 Communications Jammed . | . . . . Distress Signals . | . . . . Times Spotted 59 | . 12 14 33 Peak Tracking Total 6 | . 4 5 6 Tactical Retreats 7 | . . 3 4 Traps | -11 -10 -9 -8 ------- Run | Yrd Mat Mat Mat Traps Triggered 2 | . . . 2 Indirectly . | . . . . Trap Hack Attempts . | . . . . Triggered . | . . . . Disarmed . | . . . . Reprogrammed . | . . . . Reused . | . . . . Traps Extracted . | . . . . Installed . | . . . . Triggered . | . . . . Machines | -11 -10 -9 -8 ---------- Run | Yrd Mat Mat Mat Machines Disabled 1 | . . . 1 Max in Single Turn 1 | . . . 1 Machines Repaired . | . . . . Machines Dismantled . | . . . . Machines Sabotaged . | . . . . Overloaded Fab Kills . | . . . . Hacking | -11 -10 -9 -8 --------- Run | Yrd Mat Mat Mat Machines Accessed 8 | . 2 5 1 Terminals 5 | . 1 3 1 Fabricators . | . . . . Repair Stations 1 | . 1 . . Recycling Units 2 | . . 2 . Scanalyzers . | . . . . Garrison Access . | . . . . Total Hacks 9 | . 3 5 1 Successful 6 | . 2 3 1 Failed 3 | . 1 2 . Catastrophic . | . . . . Database Lockouts . | . . . . Manual . | . . . . Terminals 5 | . 1 3 1 Fabricators . | . . . . Repair Stations 2 | . 2 . . Recycling Units 2 | . . 2 . Scanalyzers . | . . . . Garrison Access . | . . . . Terminal Hacks 3 | . . 2 1 Record 1 | . . 1 . Locate Traps 1 | . . 1 . Transport Status 1 | . . . 1 Fabricator Hacks . | . . . . Repair Station Hacks 2 | . 2 . . Scan Component 1 | . 1 . . Repair 1 | . 1 . . Recycling Unit Hacks 1 | . . 1 . Report Inventory 1 | . . 1 . Scanalyzer . | . . . . Garrison Access Hacks . | . . . . Unauthorized Hacks . | . . . . Terminals . | . . . . Fabricators . | . . . . Repair Stations . | . . . . Recycling Units . | . . . . Scanalyzers . | . . . . Garrison Access . | . . . . Data Cores Recovered . | . . . . Used . | . . . . Hacking Detections 3 | . 1 2 . Full Trace Events . | . . . . Feedback Events . | . . . . Feedback Blocked . | . . . . Robot Schematics Acquired . | . . . . Robots Built . | . . . . Authchips . | . . . . Time . | . . . . Total Robot Build Rating . | . . . . Part Schematics Acquired . | . . . . Parts Built . | . . . . Authchips . | . . . . Time . | . . . . Total Part Build Rating . | . . . . Parts Repaired 1 | . 1 . . Time 26 | . 26 . . Parts Recycled . | . . . . Recycled Matter . | . . . . Retrieved Matter . | . . . . Retrieved Components . | . . . . Parts Scanalyzed . | . . . . Part Schematics Acquired . | . . . . Parts Damaged . | . . . . Bothacking | -11 -10 -9 -8 ------------ Run | Yrd Mat Mat Mat Used RIF Installer . | . . . . Robots Hacked . | . . . . Non-combat . | . . . . Combat . | . . . . Robot Hacks Applied . | . . . . Relay Couplers Released . | . . . . Fabnet Peak Effective % . | . . . . Robots Rewired . | . . . . Allies Hacked . | . . . . Hacks Repelled . | . . . . Allies | -11 -10 -9 -8 -------- Run | Yrd Mat Mat Mat Total Allies . | . . . . Largest Group . | . . . . Highest-Rated Group . | . . . . Highest-Rated Ally . | . . . . Total Orders . | . . . . Ally Attacks . | . . . . Total Damage . | . . . . Kills . | . . . . Allies Corrupted . | . . . . Allies Melted . | . . . . Intel | -11 -10 -9 -8 ------- Run | Yrd Mat Mat Mat Robot Analysis Total . | . . . . Derelict Logs Recovered . | . . . . Drone Launches . | . . . . Drone Recoveries . | . . . . Exploration | -11 -10 -9 -8 ------------- Run | Yrd Mat Mat Mat Turns Passed 2104 | 39 614 521 930 Spaces Moved 1071 | 30 412 290 339 Core 41 | 13 . . 28 Treads . | . . . . Legs 987 | 17 412 290 268 Wheels . | . . . . Hover . | . . . . Flight 43 | . . . 43 Fastest Speed 50 | 50 120 120 111 Average Speed 145 | 92 120 141 186 Slowest Speed 600 | 190 120 190 600 Overloaded Moves . | . . . . Propulsion Burnouts . | . . . . Robots Hopped . | . . . . Cave-ins Triggered . | . . . . Exploration Rate (%) 29 | 3 48 32 33 Regions Visited 3 Branch Regions . Pre-discovered Areas . | . . . . Known Exits Taken . | . . . . Unknown Exits Taken 3 | 1 1 1 . Scrap Searched . | . . . . Spaces Dug . | . . . . Terrain Destroyed 80 | . 71 . 9 Melee . | . . . . Projectile 7 | . . . 7 AOE 73 | . 71 . 2 Terrain Rammed . | . . . . Walls Destroyed . | . . . . Machines Disabled . | . . . . Actions | -11 -10 -9 -8 --------- Run | Yrd Mat Mat Mat Total 1352 | 40 477 345 490 Wait 9 | . . . 9 Move 1068 | 29 411 289 339 Hop . | . . . . Pick Up 44 | 5 13 10 16 Fast Attach 4 | 3 . . 1 Attach 27 | 3 3 2 19 Detach 1 | . 1 . . Swap 24 | . 7 8 9 Drop 15 | . 5 5 5 Fire 156 | . 37 29 90 Melee 2 | . . . 2 Ram . | . . . . Kick 2 | . . 2 . Crush . | . . . . Escape Stasis . | . . . . Rewire . | . . . . Trap . | . . . . Miscellaneous . | . . . . Route ------- -11/Scrapyard -10/Materials (discovered 2 exits: *Mat / [*Min]) -9/Materials -8/Materials History --------- Turn | Location | Event 10 | -11/Scrapyard | Discovered new exit (range 15) 40 | -11/Scrapyard | Entered Materials 287 | -10/Materials | Discovered new exit (range 13) 315 | -10/Materials | Build established: Mutant 330 | -10/Materials | Discovered new exit (range 10) 457 | -10/Materials | Repaired Sml. Laser? 654 | -10/Materials | Entered another Materials area 654 | -9/Materials | Evolved 2 slots: Propulsion x2 950 | -9/Materials | Build established: Scavenger-Mutant 982 | -9/Materials | Discovered new exit (range 16) 1175 | -9/Materials | Entered another Materials area 1175 | -8/Materials | Evolved 2 slots: Power x1, Utility x1 1822 | -8/Materials | Lost 3 parts (2n1w) 1963 | -8/Materials | Destroyed 7 combat bots 2033 | -8/Materials | Core integrity fell below 50% 2068 | -8/Materials | Core integrity fell below 20% 2094 | -8/Materials | Build established: Mutant 2105 | -8/Materials | Destroyed by G-47 Trooper with Particle Gun Last Messages --------------- Adv. Beam Cannon temporarily disabled. Overheating: Matter decay (-39). Overheating: Core damaged (-60). K-01 Serf collects debris. Power failure, Hvy. Ion Engine shutdown. Overheating: Flight Unit damaged (-8). Overheating: Machine Analyzer damaged (-5). Overheating: Heat Sink damaged (-10). K-01 Serf collects debris. Heat Sink destroyed. Acquired 49 matter. K-01 Serf collects debris. System corrupted: Hvy. Ion Engine fused. Adv. Beam Cannon destroyed. G-47 Trooper knocked back. G-47 Trooper destroyed. K-01 Serf collects debris. Critical hit (Burn: +37). Hvy. Ion Engine destroyed. R-06 Scavenger collects Particle Gun. Map ----- +----------------------------------------------------+ | ??????????????????????????????????????????? | | ??????????????????????????????????????????? | | ??????????????????????????????????????????? ### | | ?????????????????????????????????????????????????? | | ?????????????????????????????????????????????????? | | ?????????????????????????????????????????????????? | | ?????????????????????????????????????????????????? | | ?????????????????????????????????????????????????? | | ?????????????????????????????????????????????????? | | ?????????????????????????????????????????????????? | | ?????????????????????????????????????????????????? | | ?????????????????????????????????????????????????? | | ?????????????????????????????????????????????????? | | ?????????????????????????????????????????????????? | | ?????????????????????????????????????????????????? | | ?????????????????????????????????????????????????? | | ?????????????????????????????????????????????????? | | ?????????????????????????????????????????????????? | | ?????????????????????????????????????????????????? | | ?????????????????????????????????????????????????? | | ????????????????????????????????????????????????## | | ?????????????????????????#####??????????????????# | | ?????????????????????????# !!#??????????????????# | | ????????????????????????##! !#??????########????# | | ????????######/######+####% ]#??????# #????# | | ???????? g! @[k]#??????# "T" #????# | | ??????? % % % !!#??????# #????# | | ??????? %g % r%k!#??????# = ##???# | | ???????????#### = % #####??????# #???# | | ??????????????# #??????????# ##???# | | ??????????????#% r###############+######### | | ??????????????+* ! """"" % | | ??????????????# ""T " % | | ??????????????#o % | | ??????????????# """ * ################# | | ?????????????# """ % [# ??????? | | ?????????????# """ =[ # """???????? | | ?????????????+ % + "??????????? | | ?????????????# %%# ?????????????? | | ?????????????# = % # ????????????? | | ?????????????###########"Y"###% %# ??????????? | | ???????????????????????#"""#?# %#? ?????????? | | ???????????????????????#####?# #?! ????????? | | ?????????????????????????????# #??######???????? | | ?????????????????????????????# #???????????????? | | ?????????????????????????????# ???????????????? | | ?????????????????????????????+ ??????????????? | | ?????????????????????????????# ?????????????? | | ?????????????????????????????#######?????????????? | | ?????????????????????????????????????????????????? | +----------------------------------------------------+ Best States ------------- Heat Dissipation 41 Energy Generation 21 Energy Capacity 445 Matter Stores 450 Matter Capacity 450 Sight Range 16 Robot Scan Range 15 Terrain Scan Density 10 Additional Mass Support 6 Evasion (%) 55 Item Schematics ----------------- None Robot Schematics ------------------ None Fabricated ------------ Nothing Alien Tech Used ----------------- None Achievements -------------- None Challenges ------------ None Game ------ Seed DeuteriumExplosiveKatana Manual? 0 Play Time 00:30:34 Cumulative 28.1 hours Start 2024.03.25 @ 17:46:32 End 2024.03.25 @ 18:15:54 Sessions 1 Manual Loads 0 Difficulty Rogue Special Mode None Game No. 19 Rogue 5 Adventurer 14 Explorer 0 Win Type - Total 0 Types 0/0/0/0/0/0/0/0/0 Lore% 16 Gallery% 27 Achievement% 18 Wizard Run 0 Options --------- Layout 1 ASCII 0 Keyboard 0 Movement Mouse Keybinds 0 Fullscreen 2 Font 36/Terminus Map View 53x45 Zoom Use 0% Tactical HUD 0 Map Filters NONE Filters NONE Steam 1 RUN: dfe0c9bf-d65e-4376-93bf-06e5b6543ca1